[Event "28th CRO-chT 1B-Men 2019"]
[Site "Mali Losinj"]
[Date "2019.10.05"]
[Round "8.19"]
[White "Lenic, Luka"]
[Black "Medvegy, Zoltan"]
[Result "0-1"]
[ECO "D37"]
[WhiteElo "2644"]
[BlackElo "2539"]
[Annotator "ChessBase"]
[PlyCount "110"]
[EventDate "2019.09.28"]
[EventType "team-tourn"]
[EventCountry "CRO"]
[SourceTitle "playchess.com"]
[Source "ChessBase"]
[SourceQuality "1"]
[TimeControl "40/5400+30:1800+30"]

1. d4 {[%emt 0:01:30]} Nf6 {[%emt 0:00:30]} 2. c4 {[%emt 0:00:00]} e6 {[%emt 0:00:30]} 3. Nf3 {[%emt 0:00:00]} d5 {[%emt 0:00:00]} 4. Nc3 {[%emt 0:00:30]} Be7 {[%emt 0:00:00]} 5. Bf4 {[%emt 0:00:30]} O-O {[%emt 0:00:30]} 6. e3 {[%emt 0:00:00]} b6 {[%emt 0:00:30]} 7. Rc1 {[%emt 0:00:00]} Bb7 {[%emt 0:01:30]} 8. cxd5 {[%emt 0:01:30]} Nxd5 {[%emt 0:01:30]} 9. Nxd5 {[%emt 0:00:00]} Qxd5 {[%emt 0:00:00]} 10. a3 {[%emt 0:00:00]} c5 {[%emt 0:02:00]} 11. Bc4 {[%emt 0:05:30]} Qd8 {[%emt 0:00:00]} 12. O-O {[%emt 0:09:30]} Nc6 {[%emt 0:00:00]} 13. dxc5 {[%emt 0:02:30]} bxc5 {[%emt 0:00:30]} 14. Qc2 {[%emt 0:05:30]} Qb6 {[%emt 0:39:30]} 15. Bd3 {[%emt 0:22:30]} h6 {[%emt 0:00:30]} 16. Nd2 {[%emt 0:06:30]} Na5 {[%emt 0:09:30]} 17. Be5 {[%emt 0:00:30]} Rac8 {[%emt 0:06:30]} 18. Bh7+ {[%emt 0:03:30]} Kh8 {[%emt 0:00:00]} 19. Be4 {[%emt 0:00:30]} Ba6 {[%emt 0:04:00]} 20. Rfd1 {[%emt 0:06:30]} Nc6 {[%emt 0:01:30]} 21. Nf3 {[%emt 0:01:30]} Rfd8 {[%emt 0:08:30]} 22. Rxd8+ {[%emt 0:04:30]} Rxd8 {[%emt 0:02:30]} 23. b4 {[%emt 0:06:30]} c4 {[%emt 0:07:57]} 24. Bc3 {[%emt 0:01:30]} Kg8 {[%emt 0:02:02]} 25. Qb2 {[%emt 0:03:32]} Bf8 {[%emt 0:00:28]} 26. h4 {[%emt 0:00:23]} Bb5 {[%emt 0:04:23]} 27. Bb1 {[%emt 0:02:04]} Qa6 {[%emt 0:03:53]} 28. Qc2 {[%emt 0:06:33]} Rd3 {[%emt 0:00:03]} 29. Qa2 {[%emt 0:00:14]} Rd8 {[%emt 0:00:40]} 30. h5 {[%emt 0:00:34]} Rd5 {[%emt 0:02:12]} 31. Qc2 {[%emt 0:02:36]} Rd3 {[%emt 0:00:01]} 32. Bb2 {[%emt 0:00:56]} e5 {[%emt 0:01:08]} 33. Ne1 {[%emt 0:02:37]} e4 {[%emt 0:00:29]} 34. Nxd3 {[%emt 0:00:22]} exd3 {[%emt 0:00:32]} 35. Qc3 {[%emt 0:00:30]} Qa4 {[%emt 0:03:00]} 36. Ba2 {[%emt 0:02:56]} Nxb4 {[%emt 0:00:25]} 37. axb4 {[%emt 0:03:17]} Qxa2 {[%emt 0:00:02]} 38. Ra1 {[%emt 0:00:10]} Qb3 {[%emt 0:00:07]} 39. Qxb3 {[%emt 0:01:10]} cxb3 {[%emt 0:00:02]} 40. Bc3 {[%emt 0:00:00]} Be7 {[%emt 0:00:00]} 41. Rb1 {[%emt 0:12:36]} Bc4 {[%emt 0:04:06]} 42. Rb2 {[%emt 0:08:48]} Kf8 {[%emt 0:05:30]} 43. f3 {[%emt 0:03:46]} Ke8 {[%emt 0:00:30]} 44. Kf2 {[%emt 0:00:51]} Kd7 {[%emt 0:08:54]} 45. Rb1 {[%emt 0:02:38]} Kc6 {[%emt 0:02:41]} 46. Ke1 {[%emt 0:01:03]} Kb5 {[%emt 0:01:03]} 47. Bxg7 {[%emt 0:00:02]} Bxb4+ {[%emt 0:00:27]} 48. Kd1 {[%emt 0:00:04]} a5 {[%emt 0:01:17]} 49. g4 {[%emt 0:00:53]} f6 {[%emt 0:04:24]} 50. Bxf6 {[%emt 0:00:37]} a4 {[%emt 0:01:46]} 51. g5 {[%emt 0:00:13]} a3 {[%emt 0:00:20]} 52. Kc1 {[%emt 0:03:03]} d2+ {[%emt 0:04:08]} 53. Kd1 {[%emt 0:00:03]} b2 {[%emt 0:00:20]} 54. Bxb2 {[%emt 0:00:46]} Bb3+ {[%emt 0:00:21]} 55. Ke2 {[%emt 0:00:01]} axb2 {[%emt 0:00:08]} 0-1

[Event "28th CRO-chT 1B-Men 2019"]
[Site "Mali Losinj"]
[Date "2019.10.05"]
[Round "8.20"]
[White "Rezan, Sasa"]
[Black "Postny, Evgeny"]
[Result "0-1"]
[ECO "E41"]
[WhiteElo "2432"]
[BlackElo "2597"]
[Annotator "ChessBase"]
[PlyCount "124"]
[EventDate "2019.09.28"]
[EventType "team-tourn"]
[EventCountry "CRO"]
[SourceTitle "playchess.com"]
[Source "ChessBase"]
[SourceQuality "1"]
[TimeControl "40/5400+30:1800+30"]

1. d4 {[%emt 0:00:30]} Nf6 {[%emt 0:00:30]} 2. c4 {[%emt 0:00:00]} e6 {[%emt 0:00:00]} 3. Nc3 {[%emt 0:00:00]} Bb4 {[%emt 0:00:00]} 4. e3 {[%emt 0:00:30]} d5 {[%emt 0:00:30]} 5. Nf3 {[%emt 0:00:30]} c5 {[%emt 0:00:30]} 6. Bd3 {[%emt 0:01:30]} dxc4 {[%emt 0:00:30]} 7. Bxc4 {[%emt 0:00:00]} Qc7 {[%emt 0:01:30]} 8. O-O {[%emt 0:03:00]} Bxc3 {[%emt 0:00:00]} 9. bxc3 {[%emt 0:00:30]} cxd4 {[%emt 0:00:00]} 10. Bb5+ {[%emt 0:00:30]} Bd7 {[%emt 0:00:30]} 11. Bxd7+ {[%emt 0:02:30]} Nbxd7 {[%emt 0:00:30]} 12. cxd4 {[%emt 0:02:30]} O-O {[%emt 0:00:30]} 13. a4 {[%emt 0:01:30]} Rfc8 {[%emt 0:02:30]} 14. a5 {[%emt 0:11:30]} Ne4 {[%emt 0:06:30]} 15. Qb3 {[%emt 0:14:30]} Qc3 {[%emt 0:07:30]} 16. Qb1 {[%emt 0:12:30]} Ndf6 {[%emt 0:04:30]} 17. h3 {[%emt 0:06:30]} Rc7 {[%emt 0:07:30]} 18. Ra2 {[%emt 0:03:30]} Rac8 {[%emt 0:03:30]} 19. Bd2 {[%emt 0:00:30]} Qc4 {[%emt 0:07:30]} 20. Rb2 {[%emt 0:06:30]} Qa6 {[%emt 0:02:30]} 21. Bb4 {[%emt 0:01:30]} Qc6 {[%emt 0:11:30]} 22. Rd1 {[%emt 0:05:30]} Qa4 {[%emt 0:05:30]} 23. Be1 {[%emt 0:03:30]} Nd6 {[%emt 0:02:30]} 24. Ra2 {[%emt 0:05:46]} Qb5 {[%emt 0:07:30]} 25. Bb4 {[%emt 0:01:02]} Nfe4 {[%emt 0:05:30]} 26. Bxd6 {[%emt 0:02:05]} Qxb1 {[%emt 0:06:44]} 27. Rxb1 {[%emt 0:00:02]} Rc1+ {[%emt 0:00:16]} 28. Rxc1 {[%emt 0:00:07]} Rxc1+ {[%emt 0:00:07]} 29. Kh2 {[%emt 0:00:04]} Nxd6 {[%emt 0:00:01]} 30. Ne5 {[%emt 0:04:07]} Kf8 {[%emt 0:03:22]} 31. Nd3 {[%emt 0:03:07]} Rc4 {[%emt 0:03:30]} 32. Ne5 {[%emt 0:03:03]} Rc3 {[%emt 0:01:46]} 33. Nd7+ {[%emt 0:02:55]} Ke7 {[%emt 0:00:00]} 34. Nc5 {[%emt 0:00:01]} Kd8 {[%emt 0:00:34]} 35. Rb2 {[%emt 0:02:55]} Kc7 {[%emt 0:00:23]} 36. e4 {[%emt 0:00:25]} Kc6 {[%emt 0:07:47]} 37. e5 {[%emt 0:00:53]} Nb5 {[%emt 0:00:20]} 38. Nxb7 {[%emt 0:00:45]} Kxb7 {[%emt 0:00:12]} 39. Rxb5+ {[%emt 0:00:05]} Ka6 {[%emt 0:00:06]} 40. Rb8 {[%emt 0:00:00]} Rc7 {[%emt 0:00:00]} 41. Rg8 {[%emt 0:16:48]} g6 {[%emt 0:08:52]} 42. Rg7 {[%emt 0:01:25]} Kxa5 {[%emt 0:10:31]} 43. d5 {[%emt 0:01:02]} exd5 {[%emt 0:00:22]} 44. e6 {[%emt 0:00:05]} Rc6 {[%emt 0:00:07]} 45. exf7 {[%emt 0:04:49]} Rf6 {[%emt 0:00:05]} 46. f8=Q {[%emt 0:00:59]} Rxf8 {[%emt 0:00:34]} 47. Rxa7+ {[%emt 0:00:48]} Kb4 {[%emt 0:01:33]} 48. Kg3 {[%emt 0:00:56]} h5 {[%emt 0:01:39]} 49. f4 {[%emt 0:00:34]} d4 {[%emt 0:01:17]} 50. Kh4 {[%emt 0:03:36]} Rxf4+ {[%emt 0:02:31]} 51. Kg5 {[%emt 0:00:02]} Rf2 {[%emt 0:02:36]} 52. g4 {[%emt 0:00:25]} Rh2 {[%emt 0:05:30]} 53. gxh5 {[%emt 0:01:06]} gxh5 {[%emt 0:00:04]} 54. h4 {[%emt 0:00:09]} d3 {[%emt 0:00:12]} 55. Rd7 {[%emt 0:00:40]} d2 {[%emt 0:01:18]} 56. Kxh5 {[%emt 0:00:11]} Rg2 {[%emt 0:00:22]} 57. Kh6 {[%emt 0:00:33]} Kc3 {[%emt 0:00:06]} 58. h5 {[%emt 0:00:07]} Rg4 {[%emt 0:00:23]} 59. Rxd2 {[%emt 0:02:42]} Kxd2 {[%emt 0:00:06]} 60. Kh7 {[%emt 0:00:02]} Ke3 {[%emt 0:00:06]} 61. h6 {[%emt 0:00:06]} Kf4 {[%emt 0:01:07]} 62. Kh8 {[%emt 0:00:03]} Kf5 {[%emt 0:00:48]} 0-1

[Event "28th CRO-chT 1B-Men 2019"]
[Site "Mali Losinj"]
[Date "2019.10.05"]
[Round "8.21"]
[White "Jovanovic, Zoran"]
[Black "Bilobrk, Franjo"]
[Result "1-0"]
[ECO "B23"]
[WhiteElo "2507"]
[BlackElo "2334"]
[Annotator "ChessBase"]
[PlyCount "75"]
[EventDate "2019.09.28"]
[EventType "team-tourn"]
[EventCountry "CRO"]
[SourceTitle "playchess.com"]
[Source "ChessBase"]
[SourceQuality "1"]
[TimeControl "40/5400+30:1800+30"]

1. e4 {[%emt 0:05:30]} c5 {[%emt 0:00:30]} 2. Nc3 {[%emt 0:00:30]} e6 {[%emt 0:00:00]} 3. Nge2 {[%emt 0:00:30]} a6 {[%emt 0:01:00]} 4. g3 {[%emt 0:01:30]} b5 {[%emt 0:00:30]} 5. Bg2 {[%emt 0:00:30]} Bb7 {[%emt 0:00:00]} 6. O-O {[%emt 0:00:00]} b4 {[%emt 0:02:00]} 7. Na4 {[%emt 0:00:00]} Nf6 {[%emt 0:00:00]} 8. d3 {[%emt 0:00:30]} d6 {[%emt 0:01:00]} 9. c3 {[%emt 0:08:30]} a5 {[%emt 0:02:30]} 10. a3 {[%emt 0:00:30]} Nbd7 {[%emt 0:05:30]} 11. Re1 {[%emt 0:08:30]} e5 {[%emt 0:02:30]} 12. axb4 {[%emt 0:03:30]} axb4 {[%emt 0:00:30]} 13. cxb4 {[%emt 0:00:00]} cxb4 {[%emt 0:00:30]} 14. Bd2 {[%emt 0:01:00]} Qa5 {[%emt 0:07:30]} 15. b3 {[%emt 0:22:30]} Qb5 {[%emt 0:09:30]} 16. Nc1 {[%emt 0:12:30]} Nc5 {[%emt 0:01:30]} 17. Bf1 {[%emt 0:00:30]} Nxa4 {[%emt 0:09:30]} 18. bxa4 {[%emt 0:02:30]} Qb6 {[%emt 0:06:30]} 19. Rb1 {[%emt 0:01:30]} d5 {[%emt 0:00:30]} 20. Na2 {[%emt 0:11:18]} Bc5 {[%emt 0:03:30]} 21. Be3 {[%emt 0:04:14]} d4 {[%emt 0:04:30]} 22. Bd2 {[%emt 0:01:06]} Bc6 {[%emt 0:00:00]} 23. a5 {[%emt 0:01:49]} Qxa5 {[%emt 0:07:00]} 24. Nxb4 {[%emt 0:00:16]} Ba4 {[%emt 0:05:30]} 25. Qc1 {[%emt 0:01:23]} Qa7 {[%emt 0:10:46]} 26. Ra1 {[%emt 0:03:34]} Qe7 {[%emt 0:01:20]} 27. Qc4 {[%emt 0:00:13]} O-O {[%emt 0:00:30]} 28. Na6 {[%emt 0:00:04]} Rxa6 {[%emt 0:05:50]} 29. Qxa6 {[%emt 0:00:02]} Bd7 {[%emt 0:00:00]} 30. Qb7 {[%emt 0:00:34]} h6 {[%emt 0:00:32]} 31. Ra8 {[%emt 0:00:59]} Rxa8 {[%emt 0:00:37]} 32. Qxa8+ {[%emt 0:00:02]} Kh7 {[%emt 0:00:09]} 33. Rb1 {[%emt 0:01:34]} Qe6 {[%emt 0:05:11]} 34. Qa5 {[%emt 0:00:38]} Bd6 {[%emt 0:02:18]} 35. Rb6 {[%emt 0:01:03]} Bc7 {[%emt 0:00:31]} 36. Rxe6 {[%emt 0:00:08]} Bxa5 {[%emt 0:00:03]} 37. Rxf6 {[%emt 0:00:04]} Bxd2 {[%emt 0:00:18]} 38. Rxf7 {[%emt 0:00:59]} 1-0

[Event "28th CRO-chT 1B-Men 2019"]
[Site "Mali Losinj"]
[Date "2019.10.05"]
[Round "8.22"]
[White "Biliskov, Vjekoslav"]
[Black "Bukal, Vladimir Jr."]
[Result "0-1"]
[ECO "A40"]
[WhiteElo "2333"]
[BlackElo "2390"]
[Annotator "ChessBase"]
[PlyCount "104"]
[EventDate "2019.09.28"]
[EventType "team-tourn"]
[EventCountry "CRO"]
[SourceTitle "playchess.com"]
[Source "ChessBase"]
[SourceQuality "1"]
[TimeControl "40/5400+30:1800+30"]

1. d4 {[%emt 0:00:30]} e6 {[%emt 0:00:30]} 2. c4 {[%emt 0:00:00]} b6 {[%emt 0:00:00]} 3. a3 {[%emt 0:00:00]} Bb7 {[%emt 0:00:00]} 4. Nc3 {[%emt 0:00:30]} f5 {[%emt 0:00:30]} 5. d5 {[%emt 0:00:30]} Nf6 {[%emt 0:00:30]} 6. g3 {[%emt 0:01:30]} a5 {[%emt 0:00:30]} 7. Bg2 {[%emt 0:00:00]} Bc5 {[%emt 0:00:30]} 8. Nf3 {[%emt 0:02:00]} O-O {[%emt 0:01:30]} 9. O-O {[%emt 0:00:30]} Qe8 {[%emt 0:09:30]} 10. Bf4 {[%emt 0:14:30]} Na6 {[%emt 0:03:30]} 11. Qc2 {[%emt 0:08:30]} Ng4 {[%emt 0:08:30]} 12. Ne5 {[%emt 0:11:30]} Nxe5 {[%emt 0:21:30]} 13. Bxe5 {[%emt 0:00:30]} d6 {[%emt 0:00:00]} 14. Bf4 {[%emt 0:00:30]} e5 {[%emt 0:01:00]} 15. Be3 {[%emt 0:06:30]} Bxe3 {[%emt 0:04:30]} 16. fxe3 {[%emt 0:00:00]} Qh5 {[%emt 0:00:00]} 17. Rab1 {[%emt 0:03:00]} Rf6 {[%emt 0:05:00]} 18. Rf2 {[%emt 0:06:30]} Raf8 {[%emt 0:09:30]} 19. b4 {[%emt 0:00:30]} axb4 {[%emt 0:01:30]} 20. axb4 {[%emt 0:00:00]} Bc8 {[%emt 0:00:00]} 21. Nb5 {[%emt 0:04:00]} Qg5 {[%emt 0:06:00]} 22. Qc3 {[%emt 0:04:30]} h5 {[%emt 0:01:30]} 23. Ra1 {[%emt 0:02:30]} h4 {[%emt 0:02:30]} 24. gxh4 {[%emt 0:04:30]} Qxh4 {[%emt 0:00:30]} 25. Na7 {[%emt 0:00:30]} Bb7 {[%emt 0:05:21]} 26. Raf1 {[%emt 0:04:30]} Rh6 {[%emt 0:03:35]} 27. h3 {[%emt 0:00:30]} Qg5 {[%emt 0:01:48]} 28. Kh1 {[%emt 0:03:30]} e4 {[%emt 0:04:48]} 29. Nb5 {[%emt 0:00:30]} Qg3 {[%emt 0:02:17]} 30. Nd4 {[%emt 0:01:30]} Bc8 {[%emt 0:00:12]} 31. Ne6 {[%emt 0:03:27]} Rff6 {[%emt 0:01:56]} 32. Nf4 {[%emt 0:05:18]} Rh4 {[%emt 0:02:09]} 33. b5 {[%emt 0:02:52]} Nc5 {[%emt 0:01:37]} 34. Qa1 {[%emt 0:00:09]} Bd7 {[%emt 0:02:10]} 35. Qa8+ {[%emt 0:00:13]} Kf7 {[%emt 0:01:45]} 36. Qd8 {[%emt 0:00:38]} Rfh6 {[%emt 0:00:22]} 37. Rf3 {[%emt 0:02:36]} exf3 {[%emt 0:00:18]} 38. Rxf3 {[%emt 0:00:06]} Qe1+ {[%emt 0:00:22]} 39. Rf1 {[%emt 0:00:12]} Qc3 {[%emt 0:00:26]} 40. Ne6 {[%emt 0:00:00]} Nxe6 {[%emt 0:00:00]} 41. Qxd7+ {[%emt 0:03:59]} Kg8 {[%emt 0:02:24]} 42. dxe6 {[%emt 0:01:30]} Qxe3 {[%emt 0:01:30]} 43. Qf7+ {[%emt 0:04:30]} Kh8 {[%emt 0:02:30]} 44. Qf8+ {[%emt 0:00:30]} Kh7 {[%emt 0:00:00]} 45. Qxf5+ {[%emt 0:00:30]} Rg6 {[%emt 0:02:00]} 46. Qd3 {[%emt 0:03:30]} Qxe6 {[%emt 0:03:30]} 47. Rf5 {[%emt 0:00:30]} Qe7 {[%emt 0:06:18]} 48. Bd5 {[%emt 0:08:30]} Kh6 {[%emt 0:01:34]} 49. e4 {[%emt 0:08:02]} Rg5 {[%emt 0:02:09]} 50. Qe3 {[%emt 0:01:25]} g6 {[%emt 0:00:41]} 51. Rf1 {[%emt 0:01:59]} Qd7 {[%emt 0:02:03]} 52. Rf3 {[%emt 0:02:07]} Qg4 {[%emt 0:00:30]} 0-1

[Event "28th CRO-chT 1B-Men 2019"]
[Site "Mali Losinj"]
[Date "2019.10.05"]
[Round "8.23"]
[White "Ivekovic, Zvonimir"]
[Black "Sinanovic, Muhamed"]
[Result "1-0"]
[ECO "B43"]
[WhiteElo "2405"]
[BlackElo "2312"]
[Annotator "ChessBase"]
[PlyCount "123"]
[EventDate "2019.09.28"]
[EventType "team-tourn"]
[EventCountry "CRO"]
[SourceTitle "playchess.com"]
[Source "ChessBase"]
[SourceQuality "1"]
[TimeControl "40/5400+30:1800+30"]

1. e4 {[%emt 0:00:30]} c5 {[%emt 0:00:30]} 2. Nf3 {[%emt 0:00:00]} e6 {[%emt 0:01:30]} 3. d4 {[%emt 0:00:00]} cxd4 {[%emt 0:00:30]} 4. Nxd4 {[%emt 0:00:00]} a6 {[%emt 0:01:30]} 5. Nc3 {[%emt 0:00:00]} Qc7 {[%emt 0:00:30]} 6. Bd3 {[%emt 0:00:00]} Nf6 {[%emt 0:00:30]} 7. Qe2 {[%emt 0:05:00]} Nc6 {[%emt 0:05:30]} 8. Nf3 {[%emt 0:06:30]} d6 {[%emt 0:00:30]} 9. a3 {[%emt 0:00:30]} Be7 {[%emt 0:00:00]} 10. g4 {[%emt 0:10:30]} h6 {[%emt 0:09:00]} 11. Rg1 {[%emt 0:01:30]} Bd7 {[%emt 0:01:30]} 12. Be3 {[%emt 0:08:30]} Ne5 {[%emt 0:01:30]} 13. Nd4 {[%emt 0:06:30]} Rc8 {[%emt 0:03:30]} 14. f4 {[%emt 0:13:30]} Nc4 {[%emt 0:00:30]} 15. Bxc4 {[%emt 0:00:30]} Qxc4 {[%emt 0:00:00]} 16. Qxc4 {[%emt 0:02:30]} Rxc4 {[%emt 0:00:00]} 17. e5 {[%emt 0:01:30]} dxe5 {[%emt 0:01:30]} 18. fxe5 {[%emt 0:00:00]} Nh7 {[%emt 0:02:30]} 19. O-O-O {[%emt 0:13:00]} Bxa3 {[%emt 0:03:30]} 20. Rd3 {[%emt 0:01:30]} Be7 {[%emt 0:01:30]} 21. Rgd1 {[%emt 0:00:30]} Nf8 {[%emt 0:11:30]} 22. Ne4 {[%emt 0:05:30]} Ng6 {[%emt 0:05:30]} 23. Rb3 {[%emt 0:00:30]} b5 {[%emt 0:02:30]} 24. Nd6+ {[%emt 0:02:30]} Bxd6 {[%emt 0:01:30]} 25. exd6 {[%emt 0:00:00]} O-O {[%emt 0:01:30]} 26. Ra3 {[%emt 0:01:00]} Ra8 {[%emt 0:02:30]} 27. h3 {[%emt 0:00:30]} a5 {[%emt 0:05:30]} 28. Nb3 {[%emt 0:05:09]} a4 {[%emt 0:00:30]} 29. Nc5 {[%emt 0:00:48]} Nf8 {[%emt 0:00:30]} 30. b3 {[%emt 0:04:11]} Rc3 {[%emt 0:00:30]} 31. Kd2 {[%emt 0:01:50]} b4 {[%emt 0:00:30]} 32. Ra2 {[%emt 0:06:25]} a3 {[%emt 0:09:30]} 33. Nd3 {[%emt 0:00:20]} Rc6 {[%emt 0:00:30]} 34. Bc5 {[%emt 0:00:50]} Rca6 {[%emt 0:03:30]} 35. Bxb4 {[%emt 0:01:23]} Bc6 {[%emt 0:00:30]} 36. Rda1 {[%emt 0:00:35]} Bg2 {[%emt 0:00:30]} 37. Nf4 {[%emt 0:01:27]} Bc6 {[%emt 0:02:30]} 38. Rxa3 {[%emt 0:00:20]} Rxa3 {[%emt 0:00:30]} 39. Rxa3 {[%emt 0:00:00]} Rb8 {[%emt 0:00:00]} 40. Ba5 {[%emt 0:00:00]} f5 {[%emt 0:00:00]} 41. c4 {[%emt 0:03:42]} g5 {[%emt 0:04:30]} 42. Nd3 {[%emt 0:00:30]} Nd7 {[%emt 0:01:30]} 43. b4 {[%emt 0:00:30]} f4 {[%emt 0:00:30]} 44. Rb3 {[%emt 0:03:30]} e5 {[%emt 0:00:30]} 45. b5 {[%emt 0:01:30]} Be4 {[%emt 0:04:30]} 46. c5 {[%emt 0:01:30]} Bxd3 {[%emt 0:00:30]} 47. c6 {[%emt 0:00:00]} Bc4 {[%emt 0:04:30]} 48. Rb1 {[%emt 0:16:03]} Be6 {[%emt 0:03:30]} 49. Bc7 {[%emt 0:00:44]} Ra8 {[%emt 0:04:30]} 50. cxd7 {[%emt 0:00:29]} Bxd7 {[%emt 0:00:30]} 51. b6 {[%emt 0:00:05]} Ra2+ {[%emt 0:01:30]} 52. Kc3 {[%emt 0:02:12]} Ra3+ {[%emt 0:04:30]} 53. Kb2 {[%emt 0:01:19]} Ra5 {[%emt 0:02:30]} 54. b7 {[%emt 0:00:18]} Rb5+ {[%emt 0:00:00]} 55. Kc2 {[%emt 0:00:52]} Rxb7 {[%emt 0:00:00]} 56. Rxb7 {[%emt 0:00:20]} Kf7 {[%emt 0:00:30]} 57. Bb8 {[%emt 0:05:11]} Ke6 {[%emt 0:00:00]} 58. Rxd7 {[%emt 0:00:40]} Kxd7 {[%emt 0:00:00]} 59. Kd3 {[%emt 0:00:00]} f3 {[%emt 0:02:30]} 60. Ke3 {[%emt 0:00:09]} e4 {[%emt 0:00:00]} 61. Ba7 {[%emt 0:00:19]} Kxd6 {[%emt 0:00:00]} 62. Kxe4 {[%emt 0:00:05]} 1-0

[Event "28th CRO-chT 1B-Men 2019"]
[Site "Mali Losinj"]
[Date "2019.10.05"]
[Round "8.25"]
[White "Brkic, Ante"]
[Black "Ruck, Robert"]
[Result "1/2-1/2"]
[ECO "B12"]
[WhiteElo "2600"]
[BlackElo "2530"]
[Annotator "ChessBase"]
[PlyCount "57"]
[EventDate "2019.09.28"]
[EventType "team-tourn"]
[EventCountry "CRO"]
[SourceTitle "playchess.com"]
[Source "ChessBase"]
[SourceQuality "1"]
[TimeControl "40/5400+30:1800+30"]

1. e4 {[%emt 0:00:30]} c6 {[%emt 0:01:30]} 2. d4 {[%emt 0:00:00]} d5 {[%emt 0:00:30]} 3. e5 {[%emt 0:00:00]} Bf5 {[%emt 0:00:00]} 4. Nf3 {[%emt 0:00:00]} e6 {[%emt 0:00:00]} 5. Be2 {[%emt 0:00:00]} c5 {[%emt 0:00:00]} 6. Be3 {[%emt 0:01:30]} Qb6 {[%emt 0:00:00]} 7. Nc3 {[%emt 0:01:30]} c4 {[%emt 0:00:30]} 8. Rb1 {[%emt 0:12:30]} Bb4 {[%emt 0:00:30]} 9. O-O {[%emt 0:02:30]} Bxc3 {[%emt 0:03:30]} 10. bxc3 {[%emt 0:03:30]} Qc7 {[%emt 0:00:00]} 11. Nh4 {[%emt 0:04:30]} Be4 {[%emt 0:04:00]} 12. f3 {[%emt 0:10:30]} Bg6 {[%emt 0:00:30]} 13. f4 {[%emt 0:11:30]} Ne7 {[%emt 0:16:30]} 14. g4 {[%emt 0:00:30]} Be4 {[%emt 0:02:30]} 15. f5 {[%emt 0:00:30]} Nbc6 {[%emt 0:01:30]} 16. f6 {[%emt 0:04:30]} gxf6 {[%emt 0:00:00]} 17. Rxf6 {[%emt 0:00:00]} Rg8 {[%emt 0:00:00]} 18. Qd2 {[%emt 0:04:00]} Qa5 {[%emt 0:09:30]} 19. Rxb7 {[%emt 0:19:30]} Rb8 {[%emt 0:09:30]} 20. Rxb8+ {[%emt 0:00:30]} Nxb8 {[%emt 0:00:30]} 21. Rf1 {[%emt 0:05:28]} Qxa2 {[%emt 0:00:30]} 22. Bd1 {[%emt 0:01:50]} Nbc6 {[%emt 0:25:30]} 23. Ng2 {[%emt 0:00:08]} Ng6 {[%emt 0:09:41]} 24. Qf2 {[%emt 0:01:37]} Nd8 {[%emt 0:00:54]} 25. Bg5 {[%emt 0:00:20]} Qa3 {[%emt 0:01:42]} 26. Qd2 {[%emt 0:07:52]} Nc6 {[%emt 0:03:21]} 27. Qf2 {[%emt 0:01:19]} Nd8 {[%emt 0:01:46]} 28. Qd2 {[%emt 0:00:01]} Nc6 {[%emt 0:01:05]} 29. Qf2 {[%emt 0:02:49]} 1/2-1/2

[Event "28th CRO-chT 1B-Men 2019"]
[Site "Mali Losinj"]
[Date "2019.10.05"]
[Round "8.26"]
[White "Horvath, Adam"]
[Black "Kadric, Denis"]
[Result "0-1"]
[ECO "C41"]
[WhiteElo "2489"]
[BlackElo "2577"]
[Annotator "ChessBase"]
[PlyCount "118"]
[EventDate "2019.09.28"]
[EventType "team-tourn"]
[EventCountry "CRO"]
[SourceTitle "playchess.com"]
[Source "ChessBase"]
[SourceQuality "1"]
[TimeControl "40/5400+30:1800+30"]

1. e4 {[%emt 0:01:30]} d6 {[%emt 0:00:30]} 2. d4 {[%emt 0:00:30]} Nf6 {[%emt 0:00:00]} 3. Nc3 {[%emt 0:00:30]} e5 {[%emt 0:00:00]} 4. Nf3 {[%emt 0:00:00]} Nbd7 {[%emt 0:00:00]} 5. Bc4 {[%emt 0:00:00]} Be7 {[%emt 0:00:00]} 6. a4 {[%emt 0:00:30]} O-O {[%emt 0:00:00]} 7. O-O {[%emt 0:00:30]} c6 {[%emt 0:00:00]} 8. h3 {[%emt 0:00:30]} h6 {[%emt 0:00:00]} 9. Re1 {[%emt 0:00:30]} Re8 {[%emt 0:00:00]} 10. Be3 {[%emt 0:00:30]} exd4 {[%emt 0:00:00]} 11. Bxd4 {[%emt 0:01:30]} Nf8 {[%emt 0:00:00]} 12. a5 {[%emt 0:07:30]} Be6 {[%emt 0:00:00]} 13. Bxe6 {[%emt 0:21:30]} Nxe6 {[%emt 0:00:00]} 14. Be3 {[%emt 0:00:30]} Bf8 {[%emt 0:04:30]} 15. a6 {[%emt 0:26:30]} b5 {[%emt 0:00:30]} 16. e5 {[%emt 0:00:30]} dxe5 {[%emt 0:01:30]} 17. Nxe5 {[%emt 0:00:00]} Qc7 {[%emt 0:01:30]} 18. Ng4 {[%emt 0:00:00]} Nh7 {[%emt 0:04:30]} 19. Qf3 {[%emt 0:04:30]} h5 {[%emt 0:00:30]} 20. Nh2 {[%emt 0:00:30]} g6 {[%emt 0:00:00]} 21. h4 {[%emt 0:11:30]} Bg7 {[%emt 0:03:00]} 22. Nf1 {[%emt 0:00:30]} Nf6 {[%emt 0:01:30]} 23. Nh2 {[%emt 0:05:58]} Nd7 {[%emt 0:01:30]} 24. Rad1 {[%emt 0:02:08]} f5 {[%emt 0:03:30]} 25. Ne2 {[%emt 0:03:34]} Bxb2 {[%emt 0:04:30]} 26. Nf4 {[%emt 0:04:12]} Ndf8 {[%emt 0:06:30]} 27. g3 {[%emt 0:06:00]} Be5 {[%emt 0:03:30]} 28. Nxe6 {[%emt 0:01:22]} Rxe6 {[%emt 0:00:30]} 29. Bc5 {[%emt 0:00:34]} Rae8 {[%emt 0:05:30]} 30. Qb3 {[%emt 0:00:07]} Qf7 {[%emt 0:08:30]} 31. Nf3 {[%emt 0:00:04]} Bf6 {[%emt 0:02:30]} 32. Kg2 {[%emt 0:00:20]} Rxe1 {[%emt 0:03:30]} 33. Rxe1 {[%emt 0:01:05]} Rxe1 {[%emt 0:00:30]} 34. Nxe1 {[%emt 0:00:06]} Qxb3 {[%emt 0:00:00]} 35. cxb3 {[%emt 0:00:51]} Ne6 {[%emt 0:00:00]} 36. Bd6 {[%emt 0:00:56]} c5 {[%emt 0:06:30]} 37. Bb8 {[%emt 0:00:35]} c4 {[%emt 0:01:30]} 38. bxc4 {[%emt 0:00:13]} bxc4 {[%emt 0:00:30]} 39. Nc2 {[%emt 0:00:49]} Nc5 {[%emt 0:01:30]} 40. Nb4 {[%emt 0:00:00]} Bc3 {[%emt 0:00:00]} 41. Nd5 {[%emt 0:02:36]} Nxa6 {[%emt 0:02:00]} 42. Bxa7 {[%emt 0:00:30]} Be5 {[%emt 0:01:30]} 43. Kf3 {[%emt 0:07:30]} Kf7 {[%emt 0:00:30]} 44. Ne3 {[%emt 0:15:53]} c3 {[%emt 0:00:00]} 45. Nc4 {[%emt 0:00:02]} Bf6 {[%emt 0:01:00]} 46. Ke2 {[%emt 0:02:13]} Ke6 {[%emt 0:00:00]} 47. Bb6 {[%emt 0:02:31]} Nb4 {[%emt 0:01:00]} 48. Be3 {[%emt 0:02:41]} Kd5 {[%emt 0:00:30]} 49. Nb6+ {[%emt 0:00:12]} Kc6 {[%emt 0:01:30]} 50. Nc4 {[%emt 0:00:03]} Kb5 {[%emt 0:00:30]} 51. Nd6+ {[%emt 0:00:23]} Ka4 {[%emt 0:00:30]} 52. Ne8 {[%emt 0:00:49]} Be5 {[%emt 0:01:30]} 53. f4 {[%emt 0:00:07]} Bh8 {[%emt 0:00:30]} 54. Nc7 {[%emt 0:00:49]} Kb3 {[%emt 0:00:30]} 55. Ne6 {[%emt 0:00:17]} Nd5 {[%emt 0:00:30]} 56. Bc1 {[%emt 0:00:39]} c2 {[%emt 0:00:30]} 57. Kd3 {[%emt 0:01:03]} Nb4+ {[%emt 0:01:30]} 58. Kd2 {[%emt 0:00:29]} Bc3+ {[%emt 0:00:00]} 59. Ke3 {[%emt 0:00:06]} Na2 {[%emt 1:05:29]} 0-1